Workbook

Sheet RESUMEN EJECUTIVO
B6: RESUMEN EJECUTIVO DE VENTA
B8: DATOS DEL CLIENTE
B10: TIPO DE CONTRATO: | E10: ='DATOS DEL CLIENTE '!S4 -> 0 | L10: CORREO: | M10: =IF('DATOS DEL CLIENTE '!S4="PERSONA FISICA ",'DATOS DEL CLIENTE '!P9,IF('DATOS DEL CLIENTE '!S4="PERSONA MORAL",'DATOS DEL CLIENTE '!E50&'DATOS DEL CLIENTE '!A25&'DATOS DEL CLIENTE '!P59&'DATOS DEL CLIENTE '!A25&'DATOS DEL CLIENTE '!P67,IF('DATOS DEL CLIENTE '!S4="COPROPIEDAD ",'DATOS DEL CLIENTE '!P26&'DATOS DEL CLIENTE '!A25&'DATOS DEL CLIENTE '!P34,""))) -> 
B12: NOMBRE DE EMPRESA: | E12: ='DATOS DEL CLIENTE '!E48:AD48 -> 0
B14: NOMBRE DEL CLIENTE: | E14: =IF('DATOS DEL CLIENTE '!S4="PERSONA FISICA ",'DATOS DEL CLIENTE '!H7,IF('DATOS DEL CLIENTE '!S4="PERSONA MORAL",'DATOS DEL CLIENTE '!H57&'DATOS DEL CLIENTE '!A25&'DATOS DEL CLIENTE '!H65,IF('DATOS DEL CLIENTE '!S4="COPROPIEDAD ",'DATOS DEL CLIENTE '!H24&'DATOS DEL CLIENTE '!A25&'DATOS DEL CLIENTE '!H32,""))) -> 
B16: USO DE PROPIEDAD: | E16: ='DATOS DEL CLIENTE '!H4 -> 0 | L16: TEL.: | M16: =IF('DATOS DEL CLIENTE '!S4="PERSONA FISICA ",'DATOS DEL CLIENTE '!AF7,IF('DATOS DEL CLIENTE '!S4="PERSONA MORAL",'DATOS DEL CLIENTE '!AF48&'DATOS DEL CLIENTE '!A25&'DATOS DEL CLIENTE '!AF57&'DATOS DEL CLIENTE '!A25&'DATOS DEL CLIENTE '!AF32,IF('DATOS DEL CLIENTE '!S4="COPROPIEDAD ",'DATOS DEL CLIENTE '!AF24&'DATOS DEL CLIENTE '!A25&'DATOS DEL CLIENTE '!AF32,""))) -> 
B18: INFORMACIÓN DE VENTA
B20: REFRERENCIA | D20: =SIMULADOR!M8 -> 15BETA (LOCAL)A
K22: SIN/IVA | M22: C/IVA
B23: M2: | D23: =SIMULADOR!F15 -> 37 | I23: A FINANCIAR: | K23: =SIMULADOR!K23 -> 396710.3 | M23: =SIMULADOR!M23 -> 447489.2184
B24: TIPO: | D24: =SIMULADOR!E14 -> LOCAL
B25: P. U. LISTA: | D25: =SIMULADOR!F17 -> 15317 | I25: TEMPORALIDAD: | K25: =SIMULADOR!G22 -> 1
B26: DESCUENTO: | D26: =SIMULADOR!N15 -> 0 | I26: TASA DE INTERÉS: | K26: =SIMULADOR!G23/12 -> 0.5 | M26: =SIMULADOR!H23 -> 0
B27: P.U. DESCUENTO: | D27: =SIMULADOR!F18 -> 15317 | I27: TASA DE INTERÉS: | K27: =SIMULADOR!G24/12 -> 0.5 | M27: =SIMULADOR!H24 -> 0.02
B28: ENGANCHE | C28: =SIMULADOR!N18 -> 0.3 | D28: =SIMULADOR!K18 -> 170018.7
B29: Desc. 10% Enganche: | D29: =SIMULADOR!K19 -> 8865.25 | I29: =SIMULADOR!J37 -> ENGANCHE DIFERIDO: | L29: =SIMULADOR!K37 -> NAVE-CDA 10%,10% 10%
D30: SIN/IVA | F30: C/IVA | K30: =IF(SIMULADOR!J37="ENGANCHE DIFERIDO:","SIN/IVA","") -> SIN/IVA | M30: =IF(SIMULADOR!J37="ENGANCHE DIFERIDO:","C/IVA","") -> C/IVA
B31: ENGANCHE REAL | D31: =SIMULADOR!K21 -> 161153.45 | F31: =SIMULADOR!M21 -> 181781.0916 | I31: =SIMULADOR!K39 -> PAGO INMEDIATO | K31: =SIMULADOR!L39 -> 47807.65 | M31: =SIMULADOR!N39 -> 53927.0292 | O31: =IF(SIMULADOR!J37="ENGANCHE DIFERIDO:","NO INCLUYE MENSUALIDAD","") -> NO INCLUYE MENSUALIDAD
B33: TOTAL A PAGAR | D33: =SIMULADOR!K22 -> 557863.75 | F33: =SIMULADOR!M22 -> 629270.31 | I33: =SIMULADOR!K40 -> 12 | K33: =SIMULADOR!L40 -> 56672.9 | M33: =SIMULADOR!N40 -> 63927.0312 | O33: =IF(SIMULADOR!J37="ENGANCHE DIFERIDO:","NO INCLUYE MENSUALIDAD","") -> NO INCLUYE MENSUALIDAD
E35: 2026-01-01 | I35: =SIMULADOR!K41 -> 24 | K35: =SIMULADOR!L41 -> 56672.9 | M35: =SIMULADOR!N41 -> 63927.0312 | O35: =IF(SIMULADOR!J37="ENGANCHE DIFERIDO:","NO INCLUYE MENSUALIDAD","") -> NO INCLUYE MENSUALIDAD
B36: MES DE ENTREGA | E36: =IF(SIMULADOR!H9="AEROPUERTO (Lote)",18,IF(SIMULADOR!H9="AEROPUERTO (Nave)",18,IF(SIMULADOR!H9="PEDRO ESCOBEDO (Lote)",24,IF(SIMULADOR!H9="PEDRO ESCOBEDO (NAVE)",24,IF(SIMULADOR!H9="GAMMA II ETAPA 1",6,IF(SIMULADOR!H9="GAMMA II ETAPA 2",6,IF(SIMULADOR!H9="CELTA",36,IF(SIMULADOR!H9="STA ROSA (Nave)",4,IF(AND(SIMULADOR!H9="CALAMANDA (NAVE)",SIMULADOR!G20="FINANCIAMIENTO 1"),36,IF(AND(SIMULADOR!H9="CALAMANDA (NAVE)",SIMULADOR!G20="FINANCIAMIENTO 2"),24,IF(AND(SIMULADOR!H9="CALAMANDA (LOCAL)",SIMULADOR!F13="A"),24,IF(AND(SIMULADOR!H9="CALAMANDA (LOCAL)",SIMULADOR!F13="B"),36,IF(SIMULADOR!H9="SUR_57",36,IF(SIMULADOR!H9="PEDRO ESCOBEDO II",36,IF(SIMULADOR!H9="BETA (LOCAL)",1,""))))))))))))))) -> 1
B38: FECHA DE ENTREGA | E38: =VLOOKUP(E36,Table_1[#All],2) -> 2026-01-05 | K38: SIN/IVA | M38: C/IVA
B40: FECHA DE 1RA MENSUALIDAD | E40: =SIMULADOR!F53 -> 2026-01-05 | G40: =SIMULADOR!J27 -> 1 | J40: =SIMULADOR!K27 -> 6 | K40: =SIMULADOR!L27 -> 33059.19167 | M40: =SIMULADOR!N27 -> 37290.7682
B42: PLUSVALÍA CONTRATO | E42: =IF($D$20="AEROPUERTO (Lote)","",IF($D$20="AEROPUERTO (Nave)","",IF($D$20="PEDRO ESCOBEDO (Nave)","",IF($D$20="PEDRO ESCOBEDO (Lote)","",IF($D$20="SAN LUIS POTOSI (Nave)",20%,IF($D$20="GAMMA II ETAPA 1","",IF($D$20="GAMMA II ETAPA 2","",IF($D$20="CELTA","",IF($D$20="STA ROSA (Nave)","",""))))))))) ->  | G42: =SIMULADOR!J28 -> 7 | J42: =SIMULADOR!K28 -> 12 | K42: =SIMULADOR!L28 -> 35411.51428 | M42: =SIMULADOR!N28 -> 39944.18811
B44: FECHA DE APARTADO | E44: 2025-11-15 | F44: 2023-03-05
B45: PROMOCIÓN:
B46: =SIMULADOR!E49 -> EL GRAN FIN: VIGENCIA 30 DE NOVIEMNRE 2024
B48: ACUERDOS ADICIONALES | R48: NO
E89: VO. BO. AUTORIZA

Sheet SIMULADOR
L5: ACTUALIZACIÓN 01-12-2025
K7: FECHA DE COTIZACIÓN
E8: =INDEX(IMAGEN,MATCH(SIMULADOR!J9,NOMBRE,0)) ->  | G8: CLIENTE: | L8: REFERENCIA: | M8: =F14&H9&F13 -> 15BETA (LOCAL)A
G9: PARQUE: | H9: BETA (LOCAL) | J9: =IF(H9="AEROPUERTO (NAVE)","AEROPUERTO",IF(H9="AEROPUERTO (LOTE)","AEROPUERTO",IF(H9="CELTA","CELTA",IF(H9="GAMMA II ETAPA 2","GAMMA_II",IF(H9="CALAMANDA (NAVE)","CALAMANDA",IF(H9="CALAMANDA (LOCAL)","CALAMANDA",IF(H9="PEDRO ESCOBEDO II","PEDRO ESCOBEDO II",IF(H9="SUR_57","SUR_57.",IF(H9="BETA (LOCAL)","BETA",""))))))))) -> BETA
L10: =IF($E$14="LOTE",0%,IF($E$14="NAVE",12.8%,IF($E$14="LOCAL",12.8%,""))) -> 0.128
J12: IMPORTES: | K12: SUBTOTAL | L12: IVA | M12: IMPORTE TOTAL | N12: DESCUENTO
E13: Módulo: | F13: A | K13: =IF(Q17>"0",K18-K19,"") -> 
E14: =IF($H$9="AEROPUERTO (Lote)","LOTE",IF($H$9="AEROPUERTO (Nave)","NAVE",IF($H$9="PEDRO ESCOBEDO (Nave)","NAVE",IF($H$9="PEDRO ESCOBEDO (Lote)","LOTE",IF($H$9="SAN LUIS POTOSI (Nave)","NAVE",IF($H$9="SAN LUIS POTOSI (Lote)","LOTE",IF($H$9="GAMMA II ETAPA 1","NAVE",IF($H$9="GAMMA II ETAPA 2","NAVE",IF($H$9="CELTA","LOTE",IF($H$9="STA ROSA (Nave)","NAVE",IF($H$9="CALAMANDA (NAVE)","NAVE",IF($H$9="CALAMANDA (LOCAL)","LOCAL",IF($H$9="SUR_57","NAVE",IF($H$9="PEDRO ESCOBEDO II","NAVE",IF($H$9="BETA (LOCAL)","LOCAL",""))))))))))))))) -> LOCAL | F14: 15 | J14: Precio de Lista: | K14: =F15*F17 -> 566729 | L14: =IF(OR($L$10=0%,$L$10=""),"",K14*($L$10)) -> 72541.312 | M14: =SUM(K14:L14) -> 639270.312
E15: M2 | F15: 37 | J15: Descuento: | K15: =IF(AND(H9="CALAMANDA (LOCAL)",F13="A"),0,IF(AND(H9="CALAMANDA (LOCAL)",F13="B"),0,(K14*N15))) -> 0 | L15: =IF(OR($L$10=0%,$L$10=""),"",K15*($L$10)) -> 0 | M15: =SUM(K15:L15) -> 0 | N15: 0
E16: TIPO: | F16: ESTANDAR | L16: =IF(OR($L$10=0%,$L$10=""),"",K16*($L$10)) -> 0 | Q16: =$N$18 -> 0.3
E17: P.u Lista: | F17: 15317 | J17: Importe de Operación: | K17: =K14-K15-K16 -> 566729 | L17: 72541.312 | M17: 639270.312 | O17: 680095.28
E18: P.u Descuento: | F18: =F17-(F17*N15) -> 15317 | J18: Enganche: | K18: =$K$17*$N$18 -> 170018.7 | L18: 21762.3936 | M18: 191781.0936 | N18: =IF($H$9="AEROPUERTO (Lote)",10%,IF($H$9="AEROPUERTO (Nave)",30%,IF($H$9="PEDRO ESCOBEDO (Nave)",30%,IF($H$9="PEDRO ESCOBEDO (Lote)",30%,IF($H$9="GAMMA II ETAPA 1",30%,IF($H$9="GAMMA II ETAPA 2",20%,IF($H$9="CELTA",30%,IF($H$9="STA ROSA (NAve)",50%,IF($H$9="CALAMANDA (NAve)",30%,IF($H$9="CALAMANDA (LOCAL)",30%,IF(AND(SIMULADOR!H9="SUR_57",G20="FINANCIAMIENTO 1"),10%,IF(AND(SIMULADOR!H9="SUR_57",G20="FINANCIAMIENTO 2"),30%,IF(AND(SIMULADOR!H9="SUR_57",G20="FINANCIAMIENTO 3"),30%,IF(AND(SIMULADOR!H9="PEDRO ESCOBEDO II",G20="FINANCIAMIENTO 1"),10%,IF(AND(SIMULADOR!H9="PEDRO ESCOBEDO II",G20="FINANCIAMIENTO 2"),30%,IF(AND(SIMULADOR!H9="PEDRO ESCOBEDO II",G20="FINANCIAMIENTO 3"),30%,IF(AND(SIMULADOR!H9="BETA (LOCAL)",G20="FINANCIAMIENTO 1"),30%,""))))))))))))))))) -> 0.3 | O18: =O17/K14 -> 1.200036137
J19: Descuento en el Enganche: | K19: =IF($H$9="AEROPUERTO (Lote)",K18*0.1*N19,IF($H$9="AEROPUERTO (Nave)",K17*0.1*N19,IF($H$9="PEDRO ESCOBEDO (Nave)",K17*0*N19,IF($H$9="PEDRO ESCOBEDO (Lote)",K17*0*N19,IF($H$9="GAMMA II ETAPA 1",K17*0*N19,IF($H$9="GAMMA II ETAPA 2",K17*0*N19,IF($H$9="CELTA",K17*0.1*N19,IF($H$9="CALAMANDA (NAVE)",K17*0.1*N19,IF($H$9="CALAMANDA (LOCAL)",K17*0*N19,IF(AND(SIMULADOR!H9="SUR_57",G20="FINANCIAMIENTO 1"),K17*0*N19,IF(AND(SIMULADOR!H9="SUR_57",G20="FINANCIAMIENTO 2"),K17*0*N19,IF(AND(SIMULADOR!H9="SUR_57",G20="FINANCIAMIENTO 3"),K17*0*N19,IF($H$9="PEDRO ESCOBEDO II",K17*0*N19,IF($H$9="BETA (LOCAL)",8865.25)))))))))))))) -> 8865.25 | L19: 1134.752 | M19: 10000.002
E20: FINANCIAMIENTO: | G20: FINANCIAMIENTO 1 | J20: Enganche extra | K20: =IF(Q17>K18,Q17-(K18-K19),"0") -> 0 | L20: 0 | M20: 0
J21: ENGANCHE A PAGAR: | K21: =K18-K19+K20 -> 161153.45 | L21: 20627.6416 | M21: 181781.0916 | N21: =K21/K17 -> 0.2843571619
G22: =H22/12 -> 1 | H22: =IF($H$9="AEROPUERTO (Lote)",36,IF($H$9="AEROPUERTO (Nave)",36,IF($H$9="PEDRO ESCOBEDO (Nave)",60,IF($H$9="PEDRO ESCOBEDO (Lote)",60,IF($H$9="GAMMA II ETAPA 1",18,IF($H$9="GAMMA II ETAPA 2",6,IF($H$9="CELTA",60,IF($H$9="STA ROSA (Nave)",10,IF($H$9="CALAMANDA (NAVE)",60,IF(AND(SIMULADOR!H9="CALAMANDA (LOCAL)",SIMULADOR!F13="B"),12,IF(AND(SIMULADOR!H9="CALAMANDA (LOCAL)",SIMULADOR!F13="A"),12,IF(AND(SIMULADOR!H9="SUR_57",G20="FINANCIAMIENTO 1"),36,IF(AND(SIMULADOR!H9="SUR_57",G20="FINANCIAMIENTO 2"),60,IF(AND(SIMULADOR!H9="SUR_57",G20="FINANCIAMIENTO 3"),120,IF(AND(SIMULADOR!H9="PEDRO ESCOBEDO II",G20="FINANCIAMIENTO 1"),36,IF(AND(SIMULADOR!H9="PEDRO ESCOBEDO II",G20="FINANCIAMIENTO 2"),60,IF(AND(SIMULADOR!H9="PEDRO ESCOBEDO II",G20="FINANCIAMIENTO 3"),120,IF(AND(SIMULADOR!H9="BETA (LOCAL)",G20="FINANCIAMIENTO 1"),12,"")))))))))))))))))) -> 12 | J22: TOTAL A PAGAR: | K22: =SUM(K21+K23) -> 557863.75 | L22: 71406.56 | M22: 629270.31
E23: 1 | F23: =G23 -> 6 | G23: =IF($H$9="AEROPUERTO (NAVE)",18,IF($H$9="AEROPUERTO (Lote)",18,IF($H$9="PEDRO ESCOBEDO (Nave)",24,IF($H$9="PEDRO ESCOBEDO (Lote)",24,IF($H$9="GAMMA II ETAPA 1",6,IF($H$9="GAMMA II ETAPA 2",6,IF($H$9="CELTA",36,IF($H$9="STA ROSA (Nave)",4,IF(AND(SIMULADOR!H9="CALAMANDA (NAVE)",G20="FINANCIAMIENTO 1"),36,IF(AND(SIMULADOR!H9="CALAMANDA (NAVE)",G20="FINANCIAMIENTO 2"),24,IF(AND(SIMULADOR!H9="CALAMANDA (LOCAL)",SIMULADOR!F13="B"),6,IF(AND(SIMULADOR!H9="CALAMANDA (LOCAL)",SIMULADOR!F13="A"),6,IF(SIMULADOR!H9="SUR_57",36,IF(SIMULADOR!H9="PEDRO ESCOBEDO II",36,IF(SIMULADOR!H9="BETA (LOCAL)",6,""))))))))))))))) -> 6 | H23: 0 | J23: IMPORTE A FINANCIAR: | K23: =K17-$K$18-K20 -> 396710.3 | L23: 50778.9184 | M23: 447489.2184
E24: =F23+1 -> 7 | F24: =H22 -> 12 | G24: =IF($H$9="AEROPUERTO (lote)",18,IF($H$9="AEROPUERTO (Nave)",18,IF($H$9="PEDRO ESCOBEDO (Nave)",36,IF($H$9="PEDRO ESCOBEDO (Lote)",36,IF($H$9="GAMMA II ETAPA 1",12,IF($H$9="GAMMA II ETAPA 2",0,IF($H$9="CELTA",24,IF($H$9="STA ROSA (Nave)",6,IF(AND(SIMULADOR!H9="CALAMANDA (NAVE)",G20="FINANCIAMIENTO 1"),24,IF(AND(SIMULADOR!H9="CALAMANDA (NAVE)",G20="FINANCIAMIENTO 2"),36,IF($H$9="CALAMANDA (LOCAL)",6,IF(AND(SIMULADOR!H9="SUR_57",G20="FINANCIAMIENTO 1"),"",IF(AND(SIMULADOR!H9="SUR_57",G20="FINANCIAMIENTO 2"),24,IF(AND(SIMULADOR!H9="SUR_57",G20="FINANCIAMIENTO 3"),84,IF(AND(SIMULADOR!H9="PEDRO ESCOBEDO II",G20="FINANCIAMIENTO 1"),"",IF(AND(SIMULADOR!H9="PEDRO ESCOBEDO II",G20="FINANCIAMIENTO 2"),24,IF(AND(SIMULADOR!H9="PEDRO ESCOBEDO II",G20="FINANCIAMIENTO 3"),84,IF(AND(SIMULADOR!H9="BETA (LOCAL)",G20="FINANCIAMIENTO 1"),6,"")))))))))))))))))) -> 6 | H24: =IF($E$14="LOTE",2%,IF($E$14="NAVE",2%,IF($E$14="LOCAL",2%,""))) -> 0.02
J25: MENSUALIDADES: | L25: SUBTOTAL | M25: IVA | N25: IMPORTE TOTAL
J27: =E23 -> 1 | K27: =G23 -> 6 | L27: =IF($L$10=12.8%,(N27/1.128),IF($M$27="",_xludf.AGGREGATE(9,6,M27:N27))) -> 33059.19167 | M27: =IF($L$10=12.8%,N27-(N27/1.128),"") -> 4231.576533 | N27: =IFERROR(-PMT(H23,$H$22,O27),0) -> 37290.7682 | O27: =M23 -> 447489.2184
J28: =E24 -> 7 | K28: =H22 -> 12 | L28: =IF($L$10=12.8%,(N28/1.128),IF($M$27="",_xludf.AGGREGATE(9,6,M28:N28))) -> 35411.51428 | M28: =IF($L$10=12.8%,N28-(N28/1.128),"") -> 4532.673828 | N28: =IFERROR(-PMT(H24,$H$22-G23,O28),0) -> 39944.18811 | O28: =IF(H23=0,O27-(G23*N27),O27-(-CUMPRINC(H23,H22,O27,1,G23,0))) -> 223744.6092
E30: Documentación Requerida: | J30: =IF(J37="ENGANCHE DIFERIDO:","MENSUALIDAD + ENGANCHE","") -> MENSUALIDAD + ENGANCHE | L30: =IF(J37="ENGANCHE DIFERIDO:","SUBTOTAL","") -> SUBTOTAL | M30: =IF(J37="ENGANCHE DIFERIDO:","IVA","") -> IVA | N30: =IF(J37="ENGANCHE DIFERIDO:","IMPORTE TOTAL","") -> IMPORTE TOTAL
E31: Física. | G31: Persona moral
G32: *Acta constitutiva | K32: =IF(AND($K$37="NAVE-CDA 10%,10% 10%",J37="ENGANCHE DIFERIDO:"),12,IF(AND($K$37="GMA II 20%,15%,15%",J37="ENGANCHE DIFERIDO:"),2,IF(AND($K$37="NAVE-CALAMANDA 15%,10%,5%",J37="ENGANCHE DIFERIDO:"),12,IF(AND($K$37="LOTE-AE,CELTA, 10%,10%,10%",J37="ENGANCHE DIFERIDO:"),12,IF(AND($K$37="LOCAL B CDA 10%, 10%, 10%",J37="ENGANCHE DIFERIDO:"),12,IF(AND($K$37="LOCAL A CDA 10%, 10%, 10%",J37="ENGANCHE DIFERIDO:"),12,IF(AND($K$37="NAVE-AE 10%,10% 10%",J37="ENGANCHE DIFERIDO:"),6,""))))))) -> 12 | L32: =IF($L$10=12.8%,(N32/1.128),IF($M$27="",_xludf.AGGREGATE(9,6,M32:N32))) -> 92084.41428 | M32: =IF($L$10=12.8%,N32-(N32/1.128),"") -> 11786.80503 | N32: =VLOOKUP(K32,SIMULADOR!$E$52:$M$175,4,0)+N40 -> 103871.2193
E33: *Identificación oficial vigente. | G33: *Caratula de estado de cuenta.
E34: *Acta de nacimiento. | G34: *Poder en el que ostenta las facultades otorgadas al R.L. | K34: =IF(AND($K$37="NAVE-CDA 10%,10% 10%",J37="ENGANCHE DIFERIDO:"),24,IF(AND($K$37="GMA II 20%,15%,15%",J37="ENGANCHE DIFERIDO:"),3,IF(AND($K$37="GMA II 10%,10%,10%",J37="ENGANCHE DIFERIDO:"),3,IF(AND($K$37="NAVE-CALAMANDA 15%,10%,5%",J37="ENGANCHE DIFERIDO:"),24,IF(AND($K$37="LOTE-AE,CELTA, 10%,10%,10%",J37="ENGANCHE DIFERIDO:"),24,IF(AND($K$37="LOCAL A CDA 10%, 10%, 10%",J37="ENGANCHE DIFERIDO:"),20,IF(AND($K$37="LOCAL B CDA 10%, 10%, 10%",J37="ENGANCHE DIFERIDO:"),24,IF(AND($K$37="NAVE-AE 10%,10% 10%",J37="ENGANCHE DIFERIDO:"),12,"")))))))) -> 24 | L34: =IF($L$10=12.8%,(N34/1.128),IF($M$27="",_xludf.AGGREGATE(9,6,M34:N34))) ->  | N34: =VLOOKUP(K34,SIMULADOR!$E$52:$M$175,4,0)+N41 -> 
E35: *Acta de matrimonio ( en caso de ser casado). | G35: *Constancia de situación fiscal
E36: *Constancia de situación fiscal | G36: *Comprobante de comicilio
E37: *CURP. | G37: RL | J37: ENGANCHE DIFERIDO: | K37: =IF(J37="N/A","",IF(AND(H9=DATOS!D20,F13="A"),DATOS!D33,IF(AND(H9=DATOS!D20,F13="B"),DATOS!D34,IF(H9=DATOS!D15,DATOS!D32,IF(H9=DATOS!D16,DATOS!D35,IF(H9=DATOS!D17,DATOS!D32,IF(H9=DATOS!D18,DATOS!D35,IF(H9=DATOS!D23,DATOS!D31,IF(H9=DATOS!D22,DATOS!D32,IF(H9=DATOS!D19,DATOS!D31,IF(AND(H9=DATOS!D21,SIMULADOR!G20="FINANCIAMIENTO 2"),DATOS!D31,IF(AND(H9=DATOS!D21,SIMULADOR!G20="FINANCIAMIENTO 3"),DATOS!D31,"")))))))))))) -> NAVE-CDA 10%,10% 10% | L37: =IF(J37="ENGANCHE DIFERIDO:","SUBTOTAL","") -> SUBTOTAL | M37: =IF(J37="ENGANCHE DIFERIDO:","IVA","") -> IVA | N37: =IF(J37="ENGANCHE DIFERIDO:","IMPORTE TOTAL","") -> IMPORTE TOTAL
E38: *Caratula de estado de cuenta. | G38: *Identificación oficial
E39: *Comprobante de domicilio | G39: *Acta de nacimiento del representante legal. | J39: =IF(AND($K$37="NAVE-CDA 10%,10% 10%",J37="ENGANCHE DIFERIDO:"),10%,IF(AND($K$37="LOTE-AE,CELTA, 10%,10%,10%",J37="ENGANCHE DIFERIDO:"),10%,IF(AND($K$37="NAVE-AE,SLP 20%,5%,5%",J37="ENGANCHE DIFERIDO:"),20%,IF(AND($K$37="GMA II 20%,15%,15%",J37="ENGANCHE DIFERIDO:"),20%,IF(AND($K$37="NAVE-CALAMANDA 15%,10%,5%",J37="ENGANCHE DIFERIDO:"),15%,IF(AND($K$37="LOCAL A CDA 10%, 10%, 10%",J37="ENGANCHE DIFERIDO:"),10%,IF(AND($K$37="LOCAL B CDA 10%, 10%, 10%",J37="ENGANCHE DIFERIDO:"),10%,IF(AND($K$37="NAVE-AE 10%,10% 10%",J37="ENGANCHE DIFERIDO:"),10%,"")))))))) -> 0.1 | K39: =IF(J37="ENGANCHE DIFERIDO:","PAGO INMEDIATO","") -> PAGO INMEDIATO | L39: =(K17*J39)-K19 -> 47807.65 | M39: =IF(OR($L$10=0%,$L$10=""),"",L39*($L$10)) -> 6119.3792 | N39: =SUM(L39:M39) -> 53927.0292
G40: *CURP | J40: =IF(AND($K$37="NAVE-CDA 10%,10% 10%",J37="ENGANCHE DIFERIDO:"),10%,IF(AND($K$37="LOTE-AE,CELTA, 10%,10%,10%",J37="ENGANCHE DIFERIDO:"),10%,IF(AND($K$37="GMA II 20%,15%,15%",J37="ENGANCHE DIFERIDO:"),15%,IF(AND($K$37="NAVE-CALAMANDA 15%,10%,5%",J37="ENGANCHE DIFERIDO:"),10%,IF(AND($K$37="LOCAL A CDA 10%, 10%, 10%",J37="ENGANCHE DIFERIDO:"),10%,IF(AND($K$37="LOCAL B CDA 10%, 10%, 10%",J37="ENGANCHE DIFERIDO:"),10%,IF(AND($K$37="NAVE-AE 10%,10% 10%",J37="ENGANCHE DIFERIDO:"),10%,""))))))) -> 0.1 | K40: =IF(AND($K$37="NAVE-CDA 10%,10% 10%",J37="ENGANCHE DIFERIDO:"),12,IF(AND($K$37="LOTE-AE,CELTA, 10%,10%,10%",J37="ENGANCHE DIFERIDO:"),12,IF(AND($K$37="GMA II 20%,15%,15%",J37="ENGANCHE DIFERIDO:"),2,IF(AND($K$37="NAVE-CALAMANDA 15%,10%,5%",J37="ENGANCHE DIFERIDO:"),12,IF(AND($K$37="LOCAL A CDA 10%, 10%, 10%",J37="ENGANCHE DIFERIDO:"),12,IF(AND($K$37="LOCAL B CDA 10%, 10%, 10%",J37="ENGANCHE DIFERIDO:"),12,IF(AND($K$37="NAVE-AE 10%,10% 10%",J37="ENGANCHE DIFERIDO:"),6,""))))))) -> 12 | L40: =K17*J40 -> 56672.9 | M40: =IF(OR($L$10=0%,$L$10=""),"",L40*($L$10)) -> 7254.1312 | N40: 63927.0312
E41: EN CASO DE SER EXTRANJERO ANEXAR: | G41: *Constancia de situación fiscal | J41: =IF(AND($K$37="NAVE-CDA 10%,10% 10%",J37="ENGANCHE DIFERIDO:"),10%,IF(AND($K$37="LOTE-AE,CELTA, 10%,10%,10%",J37="ENGANCHE DIFERIDO:"),10%,IF(AND($K$37="GMA II 20%,15%,15%",J37="ENGANCHE DIFERIDO:"),15%,IF(AND($K$37="NAVE-CALAMANDA 15%,10%,5%",J37="ENGANCHE DIFERIDO:"),5%,IF(AND($K$37="LOCAL A CDA 10%, 10%, 10%",J37="ENGANCHE DIFERIDO:"),10%,IF(AND($K$37="LOCAL B CDA 10%, 10%, 10%",J37="ENGANCHE DIFERIDO:"),10%,IF(AND($K$37="NAVE-AE 10%,10% 10%",J37="ENGANCHE DIFERIDO:"),10%,""))))))) -> 0.1 | K41: =IF(AND($K$37="NAVE-CDA 10%,10% 10%",J37="ENGANCHE DIFERIDO:"),24,IF(AND($K$37="LOTE-AE,CELTA, 10%,10%,10%",J37="ENGANCHE DIFERIDO:"),24,IF(AND($K$37="GMA II 20%,15%,15%",J37="ENGANCHE DIFERIDO:"),3,IF(AND($K$37="NAVE-CALAMANDA 15%,10%,5%",J37="ENGANCHE DIFERIDO:"),24,IF(AND($K$37="LOCAL A CDA 10%, 10%, 10%",J37="ENGANCHE DIFERIDO:"),24,IF(AND($K$37="LOCAL B CDA 10%, 10%, 10%",J37="ENGANCHE DIFERIDO:"),24,IF(AND($K$37="NAVE-AE 10%,10% 10%",J37="ENGANCHE DIFERIDO:"),12,""))))))) -> 24 | L41: =K17*J41 -> 56672.9 | M41: =IF(OR($L$10=0%,$L$10=""),"",L41*($L$10)) -> 7254.1312 | N41: 63927.0312
E42: *Forma migratoria de residente permanente | G42: *Comprobante de domicilio
E43: *Convenio de renuncia | G43: *Acta de matrimonio
E44: FF-SER-006 | G44: *Los socios accionistas deberan presentar la misma documentación antes mencionada del RL.
E46: * En caso de estar CASADOS por sociedad conyugal o COPROPIEDAD, anexar toda la documentacion mencionada de ambas partes.
E48: PROMOCION
E49: EL GRAN FIN: VIGENCIA 30 DE NOVIEMNRE 2024
E50: Precios Sujetos a cambio sin sin previo aviso.
E51: DESGLOSE DE FINANCIAMIENTO A MESES SIN INTERESES
E52: PERIODO | F52: FECHA | G52: SALDO INICIAL | H52: MENSUALIDAD | I52: ABONOS | J52: PAGADO | K52: INTERÉS | L52: ABONO A CAPITAL | M52: SALDO FINAL | N52: %INTERES
E53: 1 | F53: =IF(DAY('RESUMEN EJECUTIVO'!E44)>5,DATE(YEAR('RESUMEN EJECUTIVO'!E35),MONTH(EDATE('RESUMEN EJECUTIVO'!E44,2)),5),EDATE('RESUMEN EJECUTIVO'!E44,1)) -> 2026-01-05 | G53: =$O$27 -> 447489.2184 | H53: =IF($G53>IF($E53<=$G$23,$N$27,IF($E53<=$G$24+$G$23,$N$28,"")),IF($E53<=$G$23,$N$27,IF($E53<=$G$24+$G$23,$N$28,"")),$G53+$K53) -> 37290.7682 | J53: =SUM(H53:I53) -> 37290.7682 | K53: =G53*N53 -> 0 | L53: =J53-K53 -> 37290.7682 | M53: =G53-L53 -> 410198.4502 | N53: =IF($E53<=$G$23,$H$23,IF($E53<=$G$24+$G$23,$H$24,"")) -> 0
E54: =IF(E53<$H$22,E53+1,IF(Table_1[[#This Row],[SALDO INICIAL]]<=0,"")) -> 2 | F54: =EDATE($F$53,E53) -> 2026-02-05 | G54: =M53 -> 410198.4502 | H54: =IF($G54>IF($E54<=$G$23,$N$27,IF($E54<=$G$24+$G$23,$N$28,"")),IF($E54<=$G$23,$N$27,IF($E54<=$G$24+$G$23,$N$28,"")),$G54+$K54) -> 37290.7682 | J54: =SUM(H54:I54) -> 37290.7682 | K54: =G54*N54 -> 0 | L54: =J54-K54 -> 37290.7682 | M54: =G54-L54 -> 372907.682 | N54: =IF($E54<=$G$23,$H$23,IF($E54<=$G$24+$G$23,$H$24,"")) -> 0
E55: =IF(E54<$H$22,E54+1,IF(Table_1[[#This Row],[SALDO INICIAL]]<=0,"")) -> 3 | F55: =EDATE($F$53,E54) -> 2026-03-05 | G55: =M54 -> 372907.682 | H55: 37290.7682 | J55: 37290.7682 | K55: 0 | L55: 37290.7682 | M55: 335616.9138 | N55: 0
E56: =IF(E55<$H$22,E55+1,IF(Table_1[[#This Row],[SALDO INICIAL]]<=0,"")) -> 4 | F56: 2026-04-05 | G56: 335616.9138 | H56: 37290.7682 | J56: 37290.7682 | K56: 0 | L56: 37290.7682 | M56: 298326.1456 | N56: 0
E57: =IF(E56<$H$22,E56+1,IF(Table_1[[#This Row],[SALDO INICIAL]]<=0,"")) -> 5 | F57: 2026-05-05 | G57: 298326.1456 | H57: 37290.7682 | J57: 37290.7682 | K57: 0 | L57: 37290.7682 | M57: 261035.3774 | N57: 0
E58: =IF(E57<$H$22,E57+1,IF(Table_1[[#This Row],[SALDO INICIAL]]<=0,"")) -> 6 | F58: 2026-06-05 | G58: 261035.3774 | H58: 37290.7682 | J58: 37290.7682 | K58: 0 | L58: 37290.7682 | M58: 223744.6092 | N58: 0
E59: =IF(E58<$H$22,E58+1,IF(Table_1[[#This Row],[SALDO INICIAL]]<=0,"")) -> 7 | F59: 2026-07-05 | G59: 223744.6092 | H59: 39944.18811 | J59: 39944.18811 | K59: 4474.892184 | L59: 35469.29593 | M59: 188275.3133 | N59: 0.02
E60: =IF(E59<$H$22,E59+1,IF(Table_1[[#This Row],[SALDO INICIAL]]<=0,"")) -> 8 | F60: 2026-08-05 | G60: 188275.3133 | H60: 39944.18811 | J60: 39944.18811 | K60: 3765.506265 | L60: 36178.68185 | M60: 152096.6314 | N60: 0.02
E61: =IF(E60<$H$22,E60+1,IF(Table_1[[#This Row],[SALDO INICIAL]]<=0,"")) -> 9 | F61: 2026-09-05 | G61: 152096.6314 | H61: 39944.18811 | J61: 39944.18811 | K61: 3041.932628 | L61: 36902.25548 | M61: 115194.3759 | N61: 0.02
E62: =IF(E61<$H$22,E61+1,IF(Table_1[[#This Row],[SALDO INICIAL]]<=0,"")) -> 10 | F62: 2026-10-05 | G62: 115194.3759 | H62: 39944.18811 | J62: 39944.18811 | K62: 2303.887519 | L62: 37640.30059 | M62: 77554.07534 | N62: 0.02
E63: =IF(E62<$H$22,E62+1,IF(Table_1[[#This Row],[SALDO INICIAL]]<=0,"")) -> 11 | F63: 2026-11-05 | G63: 77554.07534 | H63: 39944.18811 | J63: 39944.18811 | K63: 1551.081507 | L63: 38393.10661 | M63: 39160.96874 | N63: 0.02
E64: =IF(E63<$H$22,E63+1,IF(Table_1[[#This Row],[SALDO INICIAL]]<=0,"")) -> 12 | F64: 2026-12-05 | G64: 39160.96874 | H64: 39944.18811 | J64: 39944.18811 | K64: 783.2193748 | L64: 39160.96874 | M64: 0 | N64: 0.02
E65: =IF(E64<$H$22,E64+1,IF(Table_1[[#This Row],[SALDO INICIAL]]<=0,"")) ->  | F65: 2027-01-05 | G65: 0
E66: =IF(E65<$H$22,E65+1,IF(Table_1[[#This Row],[SALDO INICIAL]]<=0,"")) -> 
E67: =IF(E66<$H$22,E66+1,IF(Table_1[[#This Row],[SALDO INICIAL]]<=0,"")) -> 
E68: =IF(E67<$H$22,E67+1,IF(Table_1[[#This Row],[SALDO INICIAL]]<=0,"")) ->  | K68: =G68*N68 -> 
E69: =IF(E68<$H$22,E68+1,IF(Table_1[[#This Row],[SALDO INICIAL]]<=0,"")) -> 
E70: =IF(E69<$H$22,E69+1,IF(Table_1[[#This Row],[SALDO INICIAL]]<=0,"")) -> 
E71: =IF(E70<$H$22,E70+1,IF(Table_1[[#This Row],[SALDO INICIAL]]<=0,"")) -> 
E72: =IF(E71<$H$22,E71+1,IF(Table_1[[#This Row],[SALDO INICIAL]]<=0,"")) -> 
E73: =IF(E72<$H$22,E72+1,IF(Table_1[[#This Row],[SALDO INICIAL]]<=0,"")) -> 
E74: =IF(E73<$H$22,E73+1,IF(Table_1[[#This Row],[SALDO INICIAL]]<=0,"")) -> 
E75: =IF(E74<$H$22,E74+1,IF(Table_1[[#This Row],[SALDO INICIAL]]<=0,"")) -> 
E76: =IF(E75<$H$22,E75+1,IF(Table_1[[#This Row],[SALDO INICIAL]]<=0,"")) ->  | K76: =G76*N76 -> 
E77: =IF(E76<$H$22,E76+1,IF(Table_1[[#This Row],[SALDO INICIAL]]<=0,"")) -> 
E78: =IF(E77<$H$22,E77+1,IF(Table_1[[#This Row],[SALDO INICIAL]]<=0,"")) -> 
E79: =IF(E78<$H$22,E78+1,IF(Table_1[[#This Row],[SALDO INICIAL]]<=0,"")) -> 
E80: =IF(E79<$H$22,E79+1,IF(Table_1[[#This Row],[SALDO INICIAL]]<=0,"")) -> 
E81: =IF(E80<$H$22,E80+1,IF(Table_1[[#This Row],[SALDO INICIAL]]<=0,"")) -> 
E82: =IF(E81<$H$22,E81+1,IF(Table_1[[#This Row],[SALDO INICIAL]]<=0,"")) -> 
E83: =IF(E82<$H$22,E82+1,IF(Table_1[[#This Row],[SALDO INICIAL]]<=0,"")) -> 
E84: =IF(E83<$H$22,E83+1,IF(Table_1[[#This Row],[SALDO INICIAL]]<=0,"")) -> 
E85: =IF(E84<$H$22,E84+1,IF(Table_1[[#This Row],[SALDO INICIAL]]<=0,"")) -> 
E86: =IF(E85<$H$22,E85+1,IF(Table_1[[#This Row],[SALDO INICIAL]]<=0,"")) -> 
E87: =IF(E86<$H$22,E86+1,IF(Table_1[[#This Row],[SALDO INICIAL]]<=0,"")) -> 
E88: =IF(E87<$H$22,E87+1,IF(Table_1[[#This Row],[SALDO INICIAL]]<=0,"")) -> 
E89: =IF(E88<$H$22,E88+1,IF(Table_1[[#This Row],[SALDO INICIAL]]<=0,"")) -> 
E90: =IF(E89<$H$22,E89+1,IF(Table_1[[#This Row],[SALDO INICIAL]]<=0,"")) -> 
E91: =IF(E90<$H$22,E90+1,IF(Table_1[[#This Row],[SALDO INICIAL]]<=0,"")) ->  | K91: =G91*N91 -> 
E92: =IF(E91<$H$22,E91+1,IF(Table_1[[#This Row],[SALDO INICIAL]]<=0,"")) ->  | K92: =G92*N92 -> 
E93: =IF(E92<$H$22,E92+1,IF(Table_1[[#This Row],[SALDO INICIAL]]<=0,"")) ->  | K93: =G93*N93 -> 
E94: =IF(E93<$H$22,E93+1,IF(Table_1[[#This Row],[SALDO INICIAL]]<=0,"")) -> 
E95: =IF(E94<$H$22,E94+1,IF(Table_1[[#This Row],[SALDO INICIAL]]<=0,"")) -> 
E96: =IF(E95<$H$22,E95+1,IF(Table_1[[#This Row],[SALDO INICIAL]]<=0,"")) -> 
E97: =IF(E96<$H$22,E96+1,IF(Table_1[[#This Row],[SALDO INICIAL]]<=0,"")) -> 
E98: =IF(E97<$H$22,E97+1,IF(Table_1[[#This Row],[SALDO INICIAL]]<=0,"")) -> 
E99: =IF(E98<$H$22,E98+1,IF(Table_1[[#This Row],[SALDO INICIAL]]<=0,"")) -> 
E100: =IF(E99<$H$22,E99+1,IF(Table_1[[#This Row],[SALDO INICIAL]]<=0,"")) -> 
E101: =IF(E100<$H$22,E100+1,IF(Table_1[[#This Row],[SALDO INICIAL]]<=0,"")) -> 
E102: =IF(E101<$H$22,E101+1,IF(Table_1[[#This Row],[SALDO INICIAL]]<=0,"")) -> 
E103: =IF(E102<$H$22,E102+1,IF(Table_1[[#This Row],[SALDO INICIAL]]<=0,"")) -> 
E104: =IF(E103<$H$22,E103+1,IF(Table_1[[#This Row],[SALDO INICIAL]]<=0,"")) ->  | K104: =G104*N104 -> 
E105: =IF(E104<$H$22,E104+1,IF(Table_1[[#This Row],[SALDO INICIAL]]<=0,"")) ->  | K105: =G105*N105 -> 
E106: =IF(E105<$H$22,E105+1,IF(Table_1[[#This Row],[SALDO INICIAL]]<=0,"")) -> 
E107: =IF(E106<$H$22,E106+1,IF(Table_1[[#This Row],[SALDO INICIAL]]<=0,"")) -> 
E108: =IF(E107<$H$22,E107+1,IF(Table_1[[#This Row],[SALDO INICIAL]]<=0,"")) -> 
E109: =IF(E108<$H$22,E108+1,IF(Table_1[[#This Row],[SALDO INICIAL]]<=0,"")) -> 
E110: =IF(E109<$H$22,E109+1,IF(Table_1[[#This Row],[SALDO INICIAL]]<=0,"")) -> 
E111: =IF(E110<$H$22,E110+1,IF(Table_1[[#This Row],[SALDO INICIAL]]<=0,"")) -> 
E112: =IF(E111<$H$22,E111+1,IF(Table_1[[#This Row],[SALDO INICIAL]]<=0,"")) -> 
E113: =IF(E112<$H$22,E112+1,IF(Table_1[[#This Row],[SALDO INICIAL]]<=0,"")) ->  | F113: =EDATE($F$53,E112) -> 
E114: =IF(E113<$H$22,E113+1,IF(Table_1[[#This Row],[SALDO INICIAL]]<=0,"")) -> 
E115: =IF(E114<$H$22,E114+1,IF(Table_1[[#This Row],[SALDO INICIAL]]<=0,"")) -> 
E116: =IF(E115<$H$22,E115+1,IF(Table_1[[#This Row],[SALDO INICIAL]]<=0,"")) -> 
E117: =IF(E116<$H$22,E116+1,IF(Table_1[[#This Row],[SALDO INICIAL]]<=0,"")) -> 
E118: =IF(E117<$H$22,E117+1,IF(Table_1[[#This Row],[SALDO INICIAL]]<=0,"")) ->  | H118: =IF($G118>IF($E118<=$G$23,$N$27,IF($E118<=$G$24+$G$23,$N$28,"")),IF($E118<=$G$23,$N$27,IF($E118<=$G$24+$G$23,$N$28,"")),$G118+$K118) ->  | J118: =SUM(H118:I118) ->  | L118: =J118-K118 ->  | M118: =G118-L118 ->  | N118: =IF($E118<=$G$23,$H$23,IF($E118<=$G$24+$G$23,$H$24,"")) -> 
E119: =IF(E118<$H$22,E118+1,IF(Table_1[[#This Row],[SALDO INICIAL]]<=0,"")) ->  | F119: =EDATE($F$53,E118) ->  | G119: =M118 ->  | K119: =G119*N119 -> 
E120: =IF(E119<$H$22,E119+1,IF(Table_1[[#This Row],[SALDO INICIAL]]<=0,"")) ->  | K120: =G120*N120 ->  | N120: =IF($E120<=$G$23,$H$23,IF($E120<=$G$24+$G$23,$H$24,"")) -> 
E121: =IF(E120<$H$22,E120+1,IF(Table_1[[#This Row],[SALDO INICIAL]]<=0,"")) -> 
E122: =IF(E121<$H$22,E121+1,IF(Table_1[[#This Row],[SALDO INICIAL]]<=0,"")) -> 
E123: =IF(E122<$H$22,E122+1,IF(Table_1[[#This Row],[SALDO INICIAL]]<=0,"")) -> 
E124: =IF(E123<$H$22,E123+1,IF(Table_1[[#This Row],[SALDO INICIAL]]<=0,"")) -> 
E125: =IF(E124<$H$22,E124+1,IF(Table_1[[#This Row],[SALDO INICIAL]]<=0,"")) -> 
E126: =IF(E125<$H$22,E125+1,IF(Table_1[[#This Row],[SALDO INICIAL]]<=0,"")) -> 
E127: =IF(E126<$H$22,E126+1,IF(Table_1[[#This Row],[SALDO INICIAL]]<=0,"")) ->  | K127: =G127*N127 -> 
E128: =IF(E127<$H$22,E127+1,IF(Table_1[[#This Row],[SALDO INICIAL]]<=0,"")) ->  | K128: =G128*N128 -> 
E129: =IF(E128<$H$22,E128+1,IF(Table_1[[#This Row],[SALDO INICIAL]]<=0,"")) -> 
E130: =IF(E129<$H$22,E129+1,IF(Table_1[[#This Row],[SALDO INICIAL]]<=0,"")) -> 
E131: =IF(E130<$H$22,E130+1,IF(Table_1[[#This Row],[SALDO INICIAL]]<=0,"")) -> 
E132: =IF(E131<$H$22,E131+1,IF(Table_1[[#This Row],[SALDO INICIAL]]<=0,"")) -> 
E133: =IF(E132<$H$22,E132+1,IF(Table_1[[#This Row],[SALDO INICIAL]]<=0,"")) -> 
E134: =IF(E133<$H$22,E133+1,IF(Table_1[[#This Row],[SALDO INICIAL]]<=0,"")) -> 
E135: =IF(E134<$H$22,E134+1,IF(Table_1[[#This Row],[SALDO INICIAL]]<=0,"")) -> 
E136: =IF(E135<$H$22,E135+1,IF(Table_1[[#This Row],[SALDO INICIAL]]<=0,"")) -> 
E137: =IF(E136<$H$22,E136+1,IF(Table_1[[#This Row],[SALDO INICIAL]]<=0,"")) -> 
E138: =IF(E137<$H$22,E137+1,IF(Table_1[[#This Row],[SALDO INICIAL]]<=0,"")) -> 
E139: =IF(E138<$H$22,E138+1,IF(Table_1[[#This Row],[SALDO INICIAL]]<=0,"")) -> 
E140: =IF(E139<$H$22,E139+1,IF(Table_1[[#This Row],[SALDO INICIAL]]<=0,"")) ->  | K140: =G140*N140 -> 
E141: =IF(E140<$H$22,E140+1,IF(Table_1[[#This Row],[SALDO INICIAL]]<=0,"")) ->  | K141: =G141*N141 -> 
E142: =IF(E141<$H$22,E141+1,IF(Table_1[[#This Row],[SALDO INICIAL]]<=0,"")) -> 
E143: =IF(E142<$H$22,E142+1,IF(Table_1[[#This Row],[SALDO INICIAL]]<=0,"")) -> 
E144: =IF(E143<$H$22,E143+1,IF(Table_1[[#This Row],[SALDO INICIAL]]<=0,"")) -> 
E145: =IF(E144<$H$22,E144+1,IF(Table_1[[#This Row],[SALDO INICIAL]]<=0,"")) -> 
E146: =IF(E145<$H$22,E145+1,IF(Table_1[[#This Row],[SALDO INICIAL]]<=0,"")) -> 
E147: =IF(E146<$H$22,E146+1,IF(Table_1[[#This Row],[SALDO INICIAL]]<=0,"")) -> 
E148: =IF(E147<$H$22,E147+1,IF(Table_1[[#This Row],[SALDO INICIAL]]<=0,"")) -> 
E149: =IF(E148<$H$22,E148+1,IF(Table_1[[#This Row],[SALDO INICIAL]]<=0,"")) -> 
E150: =IF(E149<$H$22,E149+1,IF(Table_1[[#This Row],[SALDO INICIAL]]<=0,"")) -> 
E151: =IF(E150<$H$22,E150+1,IF(Table_1[[#This Row],[SALDO INICIAL]]<=0,"")) -> 
E152: =IF(E151<$H$22,E151+1,IF(Table_1[[#This Row],[SALDO INICIAL]]<=0,"")) -> 
E153: =IF(E152<$H$22,E152+1,IF(Table_1[[#This Row],[SALDO INICIAL]]<=0,"")) -> 
E154: =IF(E153<$H$22,E153+1,IF(Table_1[[#This Row],[SALDO INICIAL]]<=0,"")) -> 
E155: =IF(E154<$H$22,E154+1,IF(Table_1[[#This Row],[SALDO INICIAL]]<=0,"")) ->  | K155: =G155*N155 -> 
E156: =IF(E155<$H$22,E155+1,IF(Table_1[[#This Row],[SALDO INICIAL]]<=0,"")) ->  | K156: =G156*N156 -> 
E157: =IF(E156<$H$22,E156+1,IF(Table_1[[#This Row],[SALDO INICIAL]]<=0,"")) -> 
E158: =IF(E157<$H$22,E157+1,IF(Table_1[[#This Row],[SALDO INICIAL]]<=0,"")) -> 
E159: =IF(E158<$H$22,E158+1,IF(Table_1[[#This Row],[SALDO INICIAL]]<=0,"")) -> 
E160: =IF(E159<$H$22,E159+1,IF(Table_1[[#This Row],[SALDO INICIAL]]<=0,"")) -> 
E161: =IF(E160<$H$22,E160+1,IF(Table_1[[#This Row],[SALDO INICIAL]]<=0,"")) -> 
E162: =IF(E161<$H$22,E161+1,IF(Table_1[[#This Row],[SALDO INICIAL]]<=0,"")) ->  | K162: =G162*N162 -> 
E163: =IF(E162<$H$22,E162+1,IF(Table_1[[#This Row],[SALDO INICIAL]]<=0,"")) ->  | K163: =G163*N163 -> 
E164: =IF(E163<$H$22,E163+1,IF(Table_1[[#This Row],[SALDO INICIAL]]<=0,"")) -> 
E165: =IF(E164<$H$22,E164+1,IF(Table_1[[#This Row],[SALDO INICIAL]]<=0,"")) -> 
E166: =IF(E165<$H$22,E165+1,IF(Table_1[[#This Row],[SALDO INICIAL]]<=0,"")) -> 
E167: =IF(E166<$H$22,E166+1,IF(Table_1[[#This Row],[SALDO INICIAL]]<=0,"")) -> 
E168: =IF(E167<$H$22,E167+1,IF(Table_1[[#This Row],[SALDO INICIAL]]<=0,"")) -> 
E169: =IF(E168<$H$22,E168+1,IF(Table_1[[#This Row],[SALDO INICIAL]]<=0,"")) -> 
E170: =IF(E169<$H$22,E169+1,IF(Table_1[[#This Row],[SALDO INICIAL]]<=0,"")) -> 
E171: =IF(E170<$H$22,E170+1,IF(Table_1[[#This Row],[SALDO INICIAL]]<=0,"")) -> 
E172: =IF(E171<$H$22,E171+1,IF(Table_1[[#This Row],[SALDO INICIAL]]<=0,"")) -> 
E173: =IF(E172<$H$22,E172+1,IF(Table_1[[#This Row],[SALDO INICIAL]]<=0,"")) -> 
E174: =IF(E173<$H$22,E173+1,IF(Table_1[[#This Row],[SALDO INICIAL]]<=0,"")) -> 
E175: =IF(E174<$H$22,E174+1,IF(Table_1[[#This Row],[SALDO INICIAL]]<=0,"")) -> 
E176: =SUBTOTAL(102,SIMULADOR!$E$53:$E$175) -> 12 | F176: =VLOOKUP(E176,SIMULADOR!$E$52:$M$175,2,0) -> 2026-12-05 | I176: =SUBTOTAL(109,SIMULADOR!$I$53:$I$175) -> 0 | J176: =SUBTOTAL(109,SIMULADOR!$J$54:$J$172) ->  | K176: =SUBTOTAL(109,SIMULADOR!$K$53:$K$175) ->  | L176: =SUBTOTAL(109,SIMULADOR!$L$53:$L$175) ->  | M176: =VLOOKUP(E176,SIMULADOR!$E$52:$M$175,9,0)-SIMULADOR!$I$176 -> 0

Sheet DATOS DEL CLIENTE
B2: INFORMACIÓN DEL CLIENTE
B4: USO DE PROPIEDAD: | M4: TIPO DE CONTRATO:
B6: DATOS DE PERSONA FISICA
B7: NOMBRE: | AE7: CEL:
B8: DOMILICIO:
B9: VIVES EN CASA: | H9: OTRO | K9: CORREO: | AC9: NACIONALIDAD:
B10: LUGAR DE NACIMIENTO: | P10: FECHA DE NACIMIENTO: | Y10: RFC: | AF10: CURP:
B11: ESTUDIOS: | H11: SECUNDARIA | P11: EMPRESA LABORA: | AB11: OCUPACIÓN:
B12: ESPECIFICAR: | P12: PUESTO: | AB12: ANTIGÜEDAD:
B13: ESTADO CIVIL: | H13: SOLTERO | K13: APLICA BIENES: | P13: NO | X13: TELÉFONO EMPRESA:
B15: NOMBRE CONYUGE: | AE15: CEL:
B16: DOMILICIO:
B17: VIVES EN CASA: | H17: OTRO | K17: CORREO: | AC17: NACIONALIDAD:
B18: LUGAR DE NACIMIENTO: | P18: FECHA DE NACIMIENTO: | Y18: RFC: | AF18: CURP:
B19: ESTUDIOS: | H19: SECUNDARIA | P19: EMPRESA LABORA: | AB19: OCUPACIÓN:
B20: ESPECIFICAR: | P20: PUESTO: | AB20: ANTIGÜEDAD:
B21: ESTADO CIVIL: | H21: SOLTERO | K21: APLICA BIENES: | P21: NO | X21: TELÉFONO EMPRESA:
B23: DATOS COPROPIEDAD
B24: NOMBRE 1: | AE24: CEL:
A25: ; | B25: DOMILICIO:
B26: VIVES EN CASA: | H26: OTRO | K26: CORREO: | AC26: NACIONALIDAD:
B27: LUGAR DE NACIMIENTO: | P27: FECHA DE NACIMIENTO: | Y27: RFC: | AF27: CURP:
B28: ESTUDIOS: | H28: SECUNDARIA | P28: EMPRESA LABORA: | AB28: OCUPACIÓN:
B29: ESPECIFICAR: | P29: PUESTO: | AB29: ANTIGÜEDAD:
B30: ESTADO CIVIL: | H30: SOLTERO | K30: APLICA BIENES: | P30: NO | X30: TELÉFONO EMPRESA:
B32: NOMBRE 2: | AE32: CEL:
B33: DOMILICIO:
B34: VIVES EN CASA: | H34: OTRO | K34: CORREO: | AC34: NACIONALIDAD:
B35: LUGAR DE NACIMIENTO: | P35: FECHA DE NACIMIENTO: | Y35: RFC: | AF35: CURP:
B36: ESTUDIOS: | H36: SECUNDARIA | P36: EMPRESA LABORA: | AB36: OCUPACIÓN:
B37: ESPECIFICAR: | P37: PUESTO: | AB37: ANTIGÜEDAD:
B38: ESTADO CIVIL: | H38: SOLTERO | K38: APLICA BIENES: | P38: NO | X38: TELÉFONO EMPRESA:
B40: NOMBRE 2: | AE40: CEL:
B41: DOMILICIO:
B42: VIVES EN CASA: | H42: OTRO | K42: CORREO: | AC42: NACIONALIDAD:
B43: LUGAR DE NACIMIENTO: | P43: FECHA DE NACIMIENTO: | Y43: RFC: | AF43: CURP:
B44: ESTUDIOS: | H44: SECUNDARIA | P44: EMPRESA LABORA: | AB44: OCUPACIÓN:
B45: ESPECIFICAR: | P45: PUESTO: | AB45: ANTIGÜEDAD:
B46: ESTADO CIVIL: | H46: SOLTERO | K46: APLICA BIENES: | P46: NO | X46: TELÉFONO EMPRESA:
B47: DATOS DE PERSONA MORAL
B48: NOMBRE: | AE48: CEL:
B49: DOMILICIO:
B50: CORREO: | N50: RFC: | U50: GIRO: | AB50: ACTIVIDAD:
B51: ACTA CONSTITUTIVA
B52: FOLIO: | AC52: CIUDAD DE REGISTRO:
B53: FECHA DE REGISTRO: | AC53: OBJETO SOCIAL:
B54: No NOTARIA: | AC54: FOLIO MERCANTIL:
B55: NOMBRE NOTARIO:
B57: REPRESENTANTE LEGAL 1: | AE57: CEL:
B58: DOMILICIO:
B59: VIVES EN CASA: | H59: OTRO | K59: CORREO: | AC59: NACIONALIDAD:
B60: LUGAR DE NACIMIENTO: | P60: FECHA DE NACIMIENTO: | Y60: RFC: | AF60: CURP:
B61: ESTUDIOS: | H61: OTRO | P61: EMPRESA LABORA: | AB61: ANTIGÜEDAD:
B62: ESPECIFICAR: | P62: PUESTO: | AB62: TELÉFONO:
B63: ESTADO CIVIL: | H63: SOLTERO | K63: APLICA BIENES: | P63: NO | X63: OCUPACIÓN:
B65: REPRESENTANTE LEGAL 2: | AE65: CEL:
B66: DOMILICIO:
B67: VIVES EN CASA: | H67: OTRO | K67: CORREO: | AC67: NACIONALIDAD:
B68: LUGAR DE NACIMIENTO: | P68: FECHA DE NACIMIENTO: | Y68: RFC: | AF68: CURP:
B69: ESTUDIOS: | H69: OTRO | P69: EMPRESA LABORA: | AB69: ANTIGÜEDAD:
B70: ESPECIFICAR: | P70: PUESTO: | AB70: TELÉFONO:
B71: ESTADO CIVIL: | H71: SOLTERO | K71: APLICA BIENES: | P71: NO | AA71: OCUPACIÓN:
B73: REPRESENTANTE LEGAL 3: | AE73: CEL:
B74: DOMILICIO:
B75: VIVES EN CASA: | H75: OTRO | K75: CORREO: | AC75: NACIONALIDAD:
B76: LUGAR DE NACIMIENTO: | P76: FECHA DE NACIMIENTO: | Y76: RFC: | AF76: CURP:
B77: ESTUDIOS: | H77: OTRO | P77: EMPRESA LABORA: | AB77: ANTIGÜEDAD:
B78: ESPECIFICAR: | P78: PUESTO: | AB78: TELÉFONO:
B79: ESTADO CIVIL: | H79: SOLTERO | K79: APLICA BIENES: | P79: NO | AA79: OCUPACIÓN:
B81: SOCIO ACCIONISTA 1: | AE81: CEL:
B82: DOMILICIO:
B83: VIVES EN CASA: | H83: OTRO | K83: CORREO: | AC83: NACIONALIDAD:
B84: LUGAR DE NACIMIENTO: | P84: FECHA DE NACIMIENTO: | Y84: RFC: | AF84: CURP:
B85: ESTUDIOS: | H85: OTRO | P85: EMPRESA LABORA: | AB85: ANTIGÜEDAD:
B86: ESPECIFICAR: | P86: PUESTO: | AB86: TELÉFONO:
B87: ESTADO CIVIL: | H87: SOLTERO | K87: APLICA BIENES: | P87: NO | S87: % DE ACCIONES: | AA87: OCUPACIÓN:
B89: SOCIO ACCIONISTA 2: | AE89: CEL:
B90: DOMILICIO:
B91: VIVES EN CASA: | H91: OTRO | K91: CORREO: | AC91: NACIONALIDAD:
B92: LUGAR DE NACIMIENTO: | P92: FECHA DE NACIMIENTO: | Y92: RFC: | AF92: CURP:
B93: ESTUDIOS: | H93: OTRO | P93: EMPRESA LABORA: | AB93: ANTIGÜEDAD:
B94: ESPECIFICAR: | P94: PUESTO: | AB94: TELÉFONO:
B95: ESTADO CIVIL: | H95: SOLTERO | K95: APLICA BIENES: | P95: NO | S95: % DE ACCIONES: | AA95: OCUPACIÓN:
B97: SOCIO ACCIONISTA 3: | AE97: CEL:
B98: DOMILICIO:
B99: VIVES EN CASA: | H99: OTRO | K99: CORREO: | AC99: NACIONALIDAD:
B100: LUGAR DE NACIMIENTO: | P100: FECHA DE NACIMIENTO: | Y100: RFC: | AF100: CURP:
B101: ESTUDIOS: | H101: OTRO | P101: EMPRESA LABORA: | AB101: ANTIGÜEDAD:
B102: ESPECIFICAR: | P102: PUESTO: | AB102: TELÉFONO:
B103: ESTADO CIVIL: | H103: SOLTERO | K103: APLICA BIENES: | P103: NO | S103: % DE ACCIONES: | AA103: OCUPACIÓN:
B105: DOCUMENTACIÓN ENTREGADA
B106: ESCRITURACIÓN
B107: PERSONA FÍSICA | Y107: PERSONA MORAL
C108: *Identificación oficial vigente. | AC108: *Identificación oficial del representante legal vigente.
C109: *Acta de nacimiento. | AC109: *Acta de nacimiento del representante legal.
C110: *Acta de matrimonio ( en caso de ser casado). | AC110: *Acta constitutiva
C111: *Constancia de situación fiscal | AC111: *Constancia de situacón fiscal empre y representante legal
C112: *CURP. | AC112: *CURP del representante legal
C113: *Caratula de estado de cuenta. | AC113: *Caratula de estado de cuenta.
C114: *Comprobante de domicilio | AC114: *Comprobante de Domicilio (Empresa y Representante legal).
C115: *Correo, telefono y ocupación. | AC115: *Poder en el que ostenta las facultades otorgadas al representante legal
C116: EN CASO DE SER EXTRANJERO ANEXAR: | AC116: *Acta de matrimonio ( en caso de ser casado).
C117: *Forma migratoria de residente permanente | AC117: *Correo, telefono y ocupación del representante legal.
C118: *Convenio de renuncia | AC118: *Los socios accionistas deberan presentar la misma documentación antes mencionada del RL.
C119: FF-SER-006
J120: * En caso de estar CASADOS por sociedad conyugal o COPROPIEDAD, anexar toda la documentacion mencionada de ambas partes.

Sheet DATOS (hidden)
A1: NOMBRE PARQUES | B1: IMAGEN
A2: AEROPUERTO
A3: BETA
A4: GAMMA II
A5: SANTA ROSA
A6: SUR 57.
A7: CALAMANDA
A8: PEDRO ESCOBEDO II
A9: BETA
D14: PARQUES
D15: CELTA | F15: PROMOCIONES | H15: ESTUDIOS | J15: SUR 57
D16: AEROPUERTO (Nave) | F16: PROMOCIONES NAVETEC CUARTO TRIMESTRE "20 ANIVERSARIOGRUPO CCIMA" | H16: DOCTORADO | J16: N/A
D17: AEROPUERTO (Lote) | F17: PROMOCIONES NAVETEC TERCER TRIMESTRE "DE JULIO A SEPTIEMBRE 2022" | H17: MAESTRIA | J17: FINANCIAMIENTO 1
D18: GAMMA II ETAPA 2 | F18: PROMOCIONES NAVETEC SEGUNDO TRIMESTRE "DE ABRIL A JUNIO 2022" | H18: LICENCIATURA | J18: FINANCIAMIENTO 2
D19: CALAMANDA (NAVE) | F19: PROMOCIONES NAVETEC PRIMER TRIMESTRE "ARRANCA 2022" | H19: INGENIERÍA | J19: FINANCIAMIENTO 3
D20: CALAMANDA (LOCAL) | H20: TSU
D21: SUR_57 | F21: ENGANCHE | H21: PREPARATORIA
D22: PEDRO ESCOBEDO II | F22: DIFERIDO | H22: SECUNDARIA
D23: BETA (LOCAL) | F23: NORMAL | H23: PRIMARIA
H24: OTRO
D25: TIPO DE ENGANCHE | F25: ESTADO CIVIL
D26: N/A | F26: CASADO | H26: VIVE EN CASA
D27: ENGANCHE DIFERIDO: | F27: SOLTERO | H27: PROPIA
D28: ENGANCHE DIFERIDO C/IVA: | H28: RENTA
H29: FAMILIAR
D30: ENGANCHE DIERIDO | F30: TIPO CONTRATO | H30: OTRO
D31: NAVE-CDA 10%,10% 10%
D32: LOTE-AE,CELTA, 10%,10%,10% | F32: PERSONA FISICA | H32: USO DE PROPIEDAD
D33: LOCAL A CDA 10%, 10%, 10% | F33: PERSONA MORAL
D34: LOCAL B CDA 10%, 10%, 10% | F34: COPROPIEDAD | H34: PATRIMONIO
D35: NAVE-AE 10%,10% 10% | H35: INVERSIÓN
F36: APLICAN BIENES
D37: TIPO | F37: NO
D38: ESTANDAR | F38: SI
D39: PREMIUM
M42: MASTER PARQUES | N42: IMAGEN
M43: AEROPUERTO
M44: CELTA
M45: GAMMA II
M46: SANTA ROSA
M47: SUR 57.
M48: CALAMANDA
